[Event "Live Chess"]
[Site "Chess.com"]
[Date "2023.05.20"]
[Round "-"]
[White "viktorskliarov"]
[Black "Jio85"]
[Result "1-0"]
[WhiteElo "2644"]
[BlackElo "2026"]
[TimeControl "300"]
[EndTime "9:42:15 PDT"]
[Termination "viktorskliarov won by resignation"]

1. e4 {[%clk 0:04:58]} 1... Nf6 {[%clk 0:04:58.8]} 2. Nc3 {[%clk 0:04:54.1]}
2... d5 {[%clk 0:04:57.6]} 3. exd5 {[%clk 0:04:53]} 3... Nxd5 {[%clk 0:04:56.9]}
4. Bc4 {[%clk 0:04:52.7]} 4... c6 {[%clk 0:04:50.5]} 5. Qf3 {[%clk 0:04:51.3]}
5... Be6 {[%clk 0:04:47]} 6. Nge2 {[%clk 0:04:44.9]} 6... Nd7 {[%clk 0:04:35]}
7. d4 {[%clk 0:04:36.9]} 7... N7f6 {[%clk 0:04:28.5]} 8. O-O {[%clk 0:03:51.1]}
8... g6 {[%clk 0:04:12.4]} 9. a3 {[%clk 0:03:24.5]} 9... Qd7 {[%clk 0:03:47.3]}
10. h3 {[%clk 0:03:06.1]} 10... Bg7 {[%clk 0:03:27.7]} 11. Bd3 {[%clk 0:02:46]}
11... Nxc3 {[%clk 0:03:11.7]} 12. bxc3 {[%clk 0:02:42.4]} 12... Bd5 {[%clk
0:03:06.6]} 13. Qe3 {[%clk 0:02:33.6]} 13... Be6 {[%clk 0:02:59.1]} 14. Nf4
{[%clk 0:02:16.7]} 14... Nd5 {[%clk 0:02:53.7]} 15. Qg3 {[%clk 0:01:57.6]} 15...
Nxc3 {[%clk 0:02:31.9]} 16. Nxe6 {[%clk 0:01:48.5]} 16... Qxe6 {[%clk
0:02:23.7]} 17. Bf4 {[%clk 0:01:22.1]} 17... O-O {[%clk 0:01:56.1]} 18. Rfe1
{[%clk 0:01:18.3]} 18... Qd7 {[%clk 0:01:54.6]} 19. Be5 {[%clk 0:01:04.9]} 19...
Nd5 {[%clk 0:01:26.7]} 20. c4 {[%clk 0:00:56.7]} 20... Nf6 {[%clk 0:01:21.5]}
21. Rad1 {[%clk 0:00:55.1]} 21... Nh5 {[%clk 0:01:19.1]} 22. Qf3 {[%clk
0:00:50.4]} 22... Rad8 {[%clk 0:01:13.2]} 23. Bc2 {[%clk 0:00:47.3]} 23... Nf6
{[%clk 0:01:11]} 24. g4 {[%clk 0:00:45.4]} 24... h6 {[%clk 0:01:02.9]} 25. Kg2
{[%clk 0:00:44.9]} 25... Nh7 {[%clk 0:00:58.6]} 26. Rb1 {[%clk 0:00:43]} 26...
Ng5 {[%clk 0:00:57.6]} 27. Qe3 {[%clk 0:00:40.5]} 27... f6 {[%clk 0:00:55.1]}
28. Bg3 {[%clk 0:00:38.4]} 28... Qxd4 {[%clk 0:00:54]} 29. Qxd4 {[%clk 0:00:38]}
29... Rxd4 {[%clk 0:00:53.1]} 30. Rxe7 {[%clk 0:00:37.5]} 30... Rf7 {[%clk
0:00:48.5]} 31. Rbxb7 {[%clk 0:00:35.1]} 31... Rxe7 {[%clk 0:00:45.1]} 32. Rxe7
{[%clk 0:00:35]} 32... Kh7 {[%clk 0:00:26.4]} 33. h4 {[%clk 0:00:34]} 33... Rxc4
{[%clk 0:00:20.7]} 34. hxg5 {[%clk 0:00:33.2]} 34... Rxc2 {[%clk 0:00:19.3]} 35.
gxf6 {[%clk 0:00:32.3]} 35... Ra2 {[%clk 0:00:14.2]} 36. Rxg7+ {[%clk
0:00:31.1]} 1-0

[Event "Live Chess"]
[Site "Chess.com"]
[Date "2023.05.20"]
[Round "-"]
[White "Ian-Morley"]
[Black "SupremeTactician"]
[Result "0-1"]
[WhiteElo "1080"]
[BlackElo "2405"]
[TimeControl "300"]
[EndTime "9:42:16 PDT"]
[Termination "SupremeTactician won by resignation"]

1. e4 {[%clk 0:04:57.8]} 1... e5 {[%clk 0:04:59.3]} 2. Nf3 {[%clk 0:04:56.9]}
2... Nc6 {[%clk 0:04:58.6]} 3. Bc4 {[%clk 0:04:56]} 3... Bc5 {[%clk 0:04:57.8]}
4. c3 {[%clk 0:04:54]} 4... Nf6 {[%clk 0:04:57.1]} 5. d3 {[%clk 0:04:52.1]} 5...
O-O {[%clk 0:04:56]} 6. O-O {[%clk 0:04:51.4]} 6... d5 {[%clk 0:04:55.7]} 7. Bb3
{[%clk 0:04:48.2]} 7... dxe4 {[%clk 0:04:54.2]} 8. dxe4 {[%clk 0:04:47.3]} 8...
Qxd1 {[%clk 0:04:54.1]} 9. Rxd1 {[%clk 0:04:46.1]} 9... Nxe4 {[%clk 0:04:53.7]}
10. Be3 {[%clk 0:04:34.4]} 10... Bxe3 {[%clk 0:04:53]} 11. fxe3 {[%clk
0:04:33.5]} 11... Nc5 {[%clk 0:04:46.9]} 12. Nbd2 {[%clk 0:04:30.7]} 12... Nxb3
{[%clk 0:04:44.5]} 13. Nxb3 {[%clk 0:04:29.8]} 13... b6 {[%clk 0:04:42.7]} 14.
a4 {[%clk 0:04:22.5]} 14... a5 {[%clk 0:04:41.4]} 15. e4 {[%clk 0:04:17.8]}
15... Be6 {[%clk 0:04:40.5]} 16. Nbd2 {[%clk 0:04:14.4]} 16... Rad8 {[%clk
0:04:39.6]} 17. Nf1 {[%clk 0:04:12.5]} 17... Rxd1 {[%clk 0:04:37.4]} 18. Rxd1
{[%clk 0:04:11.3]} 18... Rd8 {[%clk 0:04:37.3]} 19. Rxd8+ {[%clk 0:04:09.2]}
19... Nxd8 {[%clk 0:04:37.2]} 20. Nxe5 {[%clk 0:04:07.7]} 20... Bb3 {[%clk
0:04:34.9]} 21. Nd2 {[%clk 0:03:48.6]} 21... Bxa4 {[%clk 0:04:28.8]} 22. Ndc4
{[%clk 0:03:47.5]} 22... Bb5 {[%clk 0:04:23.5]} 23. Kf2 {[%clk 0:03:44.5]} 23...
f6 {[%clk 0:04:22.8]} 24. Nxb6 {[%clk 0:03:04.3]} 24... cxb6 {[%clk 0:04:19.1]}
25. Nf3 {[%clk 0:03:00.8]} 25... Ne6 {[%clk 0:04:11.2]} 26. e5 {[%clk
0:02:58.9]} 26... Bc6 {[%clk 0:04:09.2]} 27. exf6 {[%clk 0:02:57.2]} 27... Bxf3
{[%clk 0:04:08.4]} 28. f7+ {[%clk 0:02:56.3]} 28... Kxf7 {[%clk 0:04:07.7]} 29.
gxf3 {[%clk 0:02:55.7]} 29... Kf6 {[%clk 0:04:07.6]} 30. Ke3 {[%clk 0:02:54.7]}
30... Ke5 {[%clk 0:04:07.5]} 31. h4 {[%clk 0:02:52.5]} 31... h6 {[%clk
0:04:05.1]} 32. h5 {[%clk 0:02:51.1]} 32... Nf4 {[%clk 0:04:04.2]} 33. b4 {[%clk
0:02:43.3]} 33... axb4 {[%clk 0:04:04.1]} 34. cxb4 {[%clk 0:02:42.7]} 34... Nxh5
{[%clk 0:04:03.9]} 35. Kd3 {[%clk 0:02:41.9]} 35... Nf4+ {[%clk 0:04:03.5]} 36.
Kc4 {[%clk 0:02:41.2]} 36... g5 {[%clk 0:04:02.3]} 37. Kb5 {[%clk 0:02:40.6]}
37... Nd5 {[%clk 0:04:01.8]} 38. Kc6 {[%clk 0:02:39]} 38... h5 {[%clk
0:04:01.1]} 0-1

[Event "Live Chess"]
[Site "Chess.com"]
[Date "2023.05.20"]
[Round "-"]
[White "Andysav3"]
[Black "WelshTiger"]
[Result "0-1"]
[WhiteElo "1688"]
[BlackElo "2431"]
[TimeControl "300"]
[EndTime "9:42:25 PDT"]
[Termination "WelshTiger won by resignation"]

1. e4 {[%clk 0:04:57.6]} 1... c5 {[%clk 0:04:52.7]} 2. c3 {[%clk 0:04:56]} 2...
Nf6 {[%clk 0:04:50.2]} 3. e5 {[%clk 0:04:54.5]} 3... Nd5 {[%clk 0:04:49.5]} 4.
d4 {[%clk 0:04:52.5]} 4... cxd4 {[%clk 0:04:48.4]} 5. Bc4 {[%clk 0:04:50]} 5...
e6 {[%clk 0:04:47.1]} 6. Bxd5 {[%clk 0:04:29.9]} 6... exd5 {[%clk 0:04:45.9]} 7.
Qxd4 {[%clk 0:04:28.9]} 7... Qa5 {[%clk 0:04:36.8]} 8. b4 {[%clk 0:04:19.7]}
8... Qb5 {[%clk 0:04:35.9]} 9. a4 {[%clk 0:04:14.6]} 9... Qc6 {[%clk 0:04:31.4]}
10. Nf3 {[%clk 0:04:03.9]} 10... Be7 {[%clk 0:04:25.4]} 11. O-O {[%clk
0:03:58.7]} 11... O-O {[%clk 0:03:58.1]} 12. Be3 {[%clk 0:03:50.3]} 12... d6
{[%clk 0:03:56.5]} 13. Rd1 {[%clk 0:03:31.7]} 13... Be6 {[%clk 0:03:52.1]} 14.
Na3 {[%clk 0:03:13.2]} 14... Nd7 {[%clk 0:03:44.3]} 15. exd6 {[%clk 0:02:54.7]}
15... Bf6 {[%clk 0:03:43.3]} 16. Qd3 {[%clk 0:02:47.9]} 16... a6 {[%clk
0:03:37.4]} 17. Rac1 {[%clk 0:02:36.6]} 17... Qxd6 {[%clk 0:03:30.5]} 18. c4
{[%clk 0:02:20.6]} 18... Qxb4 {[%clk 0:03:23]} 19. cxd5 {[%clk 0:02:18.4]} 19...
Bg4 {[%clk 0:03:22.1]} 20. Nc2 {[%clk 0:01:55.6]} 20... Qxa4 {[%clk 0:03:12.1]}
21. Nce1 {[%clk 0:01:43.8]} 21... Rac8 {[%clk 0:03:06]} 22. h3 {[%clk
0:01:40.3]} 22... Bh5 {[%clk 0:03:04.3]} 23. g4 {[%clk 0:01:17.5]} 23... Bg6
{[%clk 0:03:02.6]} 24. Qd2 {[%clk 0:01:10.1]} 24... Rxc1 {[%clk 0:02:22.9]} 25.
Rxc1 {[%clk 0:01:07.6]} 25... Ne5 {[%clk 0:02:20.8]} 26. Nd4 {[%clk 0:00:50.6]}
26... Be4 {[%clk 0:02:10.3]} 27. g5 {[%clk 0:00:41.5]} 27... Be7 {[%clk
0:02:05.2]} 28. Bf4 {[%clk 0:00:36.8]} 28... Bd6 {[%clk 0:01:52.8]} 29. f3
{[%clk 0:00:29.2]} 29... Bg6 {[%clk 0:01:42.7]} 30. Kf2 {[%clk 0:00:23.3]} 30...
Rd8 {[%clk 0:01:30.4]} 31. Nec2 {[%clk 0:00:21.2]} 31... Nd3+ {[%clk 0:01:27]}
32. Kg1 {[%clk 0:00:17.3]} 32... Bxf4 {[%clk 0:01:25.9]} 0-1

[Event "Live Chess"]
[Site "Chess.com"]
[Date "2023.05.20"]
[Round "-"]
[White "ranvir123"]
[Black "NatashaRegan"]
[Result "1-0"]
[WhiteElo "855"]
[BlackElo "1797"]
[TimeControl "300"]
[EndTime "9:42:31 PDT"]
[Termination "ranvir123 won by resignation"]

1. e4 {[%clk 0:04:56.5]} 1... c6 {[%clk 0:04:54.5]} 2. d4 {[%clk 0:04:54.4]}
2... d5 {[%clk 0:04:53]} 3. e5 {[%clk 0:04:52.9]} 3... Bf5 {[%clk 0:04:50.8]} 4.
Nf3 {[%clk 0:04:45.8]} 4... e6 {[%clk 0:04:49]} 5. Nc3 {[%clk 0:04:42.2]} 5...
Nd7 {[%clk 0:04:45.8]} 6. Bd3 {[%clk 0:04:41]} 6... Bxd3 {[%clk 0:04:36]} 7.
Qxd3 {[%clk 0:04:39.5]} 7... c5 {[%clk 0:04:35.1]} 8. Bg5 {[%clk 0:04:32.8]}
8... Qa5 {[%clk 0:04:28.8]} 9. O-O {[%clk 0:04:27.8]} 9... h6 {[%clk 0:04:20.9]}
10. Bh4 {[%clk 0:04:20.2]} 10... cxd4 {[%clk 0:04:16.5]} 11. Nxd4 {[%clk
0:04:15.2]} 11... Bb4 {[%clk 0:04:13.4]} 12. Ncb5 {[%clk 0:04:07.1]} 12... Nxe5
{[%clk 0:04:05.5]} 13. Qg3 {[%clk 0:03:56.2]} 13... Ng6 {[%clk 0:03:33.7]} 14.
Nc7+ {[%clk 0:03:50.1]} 14... Kd7 {[%clk 0:03:27.4]} 15. Nxa8 {[%clk 0:03:44.1]}
15... Bd6 {[%clk 0:03:24.5]} 16. Qb3 {[%clk 0:03:30.5]} 16... b6 {[%clk
0:03:02.1]} 17. Bg3 {[%clk 0:03:14.9]} 17... e5 {[%clk 0:02:53.3]} 18. Nb5
{[%clk 0:02:58.1]} 18... Nf6 {[%clk 0:02:41.8]} 19. Rfd1 {[%clk 0:02:47.8]}
19... Rxa8 {[%clk 0:02:37.9]} 20. Rxd5 {[%clk 0:02:41.4]} 20... Nxd5 {[%clk
0:02:35.5]} 21. Qxd5 {[%clk 0:02:35.8]} 21... Qb4 {[%clk 0:02:25.1]} 22. Rd1
{[%clk 0:02:13.9]} 22... Rc8 {[%clk 0:02:07]} 23. Qb7+ {[%clk 0:01:55.5]} 23...
Kd8 {[%clk 0:01:45.7]} 24. Rxd6+ {[%clk 0:01:34.8]} 24... Qxd6 {[%clk
0:01:33.4]} 25. Nxd6 {[%clk 0:01:31.1]} 25... Rxc2 {[%clk 0:01:32.1]} 26. Nxf7+
{[%clk 0:01:12.3]} 26... Ke8 {[%clk 0:01:28.9]} 27. Nd6+ {[%clk 0:01:11.1]}
27... Kd8 {[%clk 0:01:13.1]} 28. Qb8+ {[%clk 0:01:02.5]} 28... Kd7 {[%clk
0:01:09.4]} 29. Qe8+ {[%clk 0:00:59.1]} 29... Kxd6 {[%clk 0:01:06.4]} 30. Qxg6+
{[%clk 0:00:51.3]} 30... Kd5 {[%clk 0:01:05.2]} 31. Qxc2 {[%clk 0:00:47]} 1-0

[Event "Live Chess"]
[Site "Chess.com"]
[Date "2023.05.20"]
[Round "-"]
[White "zdanevych"]
[Black "tuppyglossop"]
[Result "1-0"]
[WhiteElo "1526"]
[BlackElo "1599"]
[TimeControl "300"]
[EndTime "9:42:31 PDT"]
[Termination "zdanevych won by resignation"]

1. d4 {[%clk 0:04:58.8]} 1... d5 {[%clk 0:04:54.6]} 2. c4 {[%clk 0:04:57.6]}
2... e6 {[%clk 0:04:53.4]} 3. cxd5 {[%clk 0:04:50.7]} 3... exd5 {[%clk
0:04:50.8]} 4. Nc3 {[%clk 0:04:48.7]} 4... Nf6 {[%clk 0:04:49.3]} 5. Nf3 {[%clk
0:04:45.7]} 5... c6 {[%clk 0:04:48]} 6. h3 {[%clk 0:04:45.1]} 6... Be7 {[%clk
0:04:47]} 7. Bf4 {[%clk 0:04:43.7]} 7... O-O {[%clk 0:04:45.4]} 8. e3 {[%clk
0:04:43]} 8... Re8 {[%clk 0:04:44]} 9. Bd3 {[%clk 0:04:42.4]} 9... a6 {[%clk
0:04:42.9]} 10. O-O {[%clk 0:04:41.7]} 10... Nbd7 {[%clk 0:04:41]} 11. Rc1
{[%clk 0:04:39.8]} 11... Nf8 {[%clk 0:04:39.2]} 12. Bb1 {[%clk 0:04:38.6]} 12...
Bd6 {[%clk 0:04:31]} 13. Bg5 {[%clk 0:04:36.1]} 13... h6 {[%clk 0:04:28]} 14.
Bxf6 {[%clk 0:04:34.2]} 14... Qxf6 {[%clk 0:04:26.6]} 15. Re1 {[%clk 0:04:26.8]}
15... Bd7 {[%clk 0:04:12.7]} 16. Ne2 {[%clk 0:04:20.7]} 16... Bxh3 {[%clk
0:04:07.9]} 17. gxh3 {[%clk 0:04:19.4]} 17... Qxf3 {[%clk 0:04:06.4]} 18. Ng3
{[%clk 0:04:08]} 18... Bxg3 {[%clk 0:03:59.8]} 19. Qxf3 {[%clk 0:04:07.3]} 19...
Bxf2+ {[%clk 0:03:56.3]} 20. Qxf2 {[%clk 0:04:05.9]} 20... Ng6 {[%clk 0:03:55]}
21. Bxg6 {[%clk 0:04:02.8]} 21... fxg6 {[%clk 0:03:54.9]} 22. Qg2 {[%clk
0:03:56.9]} 1-0

[Event "Live Chess"]
[Site "Chess.com"]
[Date "2023.05.20"]
[Round "-"]
[White "killershark69420"]
[Black "Crowded_House"]
[Result "0-1"]
[WhiteElo "293"]
[BlackElo "1678"]
[TimeControl "300"]
[EndTime "9:42:35 PDT"]
[Termination "Crowded_House won by resignation"]

1. e4 {[%clk 0:04:44.6]} 1... e6 {[%clk 0:04:58.3]} 2. d4 {[%clk 0:04:41.9]}
2... d5 {[%clk 0:04:57.8]} 3. exd5 {[%clk 0:04:38.4]} 3... exd5 {[%clk
0:04:56.7]} 4. Bb5+ {[%clk 0:04:31.6]} 4... c6 {[%clk 0:04:54.5]} 5. Bf1 {[%clk
0:04:25.8]} 5... Bd6 {[%clk 0:04:52.9]} 6. Qh5 {[%clk 0:04:19.1]} 6... Nf6
{[%clk 0:04:46]} 7. Qg5 {[%clk 0:04:09]} 7... O-O {[%clk 0:04:40.5]} 8. h4
{[%clk 0:03:54.8]} 8... Re8+ {[%clk 0:04:39.5]} 9. Be2 {[%clk 0:03:46.8]} 9...
Qe7 {[%clk 0:04:35.1]} 10. h5 {[%clk 0:03:37.3]} 10... h6 {[%clk 0:04:34.2]} 11.
Qe3 {[%clk 0:03:09.2]} 11... Qxe3 {[%clk 0:04:27.8]} 12. Bxe3 {[%clk 0:03:06.6]}
12... Bf5 {[%clk 0:04:16.7]} 13. Rh4 {[%clk 0:02:49.6]} 13... Bxc2 {[%clk
0:04:07]} 14. Bf4 {[%clk 0:02:08.9]} 14... Bxf4 {[%clk 0:03:59.5]} 15. Rxf4
{[%clk 0:02:07.6]} 15... Nbd7 {[%clk 0:03:51.2]} 16. g4 {[%clk 0:02:01.9]} 16...
Re4 {[%clk 0:03:27.8]} 17. Rxe4 {[%clk 0:01:53.4]} 17... Nxe4 {[%clk 0:03:26.8]}
18. Bf3 {[%clk 0:01:45.2]} 18... Re8 {[%clk 0:03:12.6]} 19. Nd2 {[%clk
0:01:35.7]} 19... Nxd2+ {[%clk 0:03:04.2]} 20. Kxd2 {[%clk 0:01:31.8]} 20... Be4
{[%clk 0:02:59.2]} 21. Bxe4 {[%clk 0:01:30.3]} 21... Rxe4 {[%clk 0:02:56.8]} 22.
Re1 {[%clk 0:01:27.5]} 22... Rxe1 {[%clk 0:02:55.6]} 23. Kxe1 {[%clk 0:01:24.8]}
23... Nf6 {[%clk 0:02:55.1]} 24. Nf3 {[%clk 0:01:21.7]} 24... Nxg4 {[%clk
0:02:52]} 25. Ng5 {[%clk 0:01:11.1]} 25... hxg5 {[%clk 0:02:49.7]} 0-1

[Event "Live Chess"]
[Site "Chess.com"]
[Date "2023.05.20"]
[Round "-"]
[White "Singapourfeuj"]
[Black "boilerboy1"]
[Result "1-0"]
[WhiteElo "2290"]
[BlackElo "1095"]
[TimeControl "300"]
[EndTime "9:42:42 PDT"]
[Termination "Singapourfeuj won on time"]

1. d4 {[%clk 0:04:58]} 1... Nf6 {[%clk 0:04:51.5]} 2. Nc3 {[%clk 0:04:55.3]}
2... g6 {[%clk 0:04:49.7]} 3. Bg5 {[%clk 0:04:54.1]} 3... Bg7 {[%clk 0:04:47.5]}
4. e4 {[%clk 0:04:53.4]} 4... c5 {[%clk 0:04:45.7]} 5. d5 {[%clk 0:04:52.3]}
5... d6 {[%clk 0:04:44.1]} 6. h4 {[%clk 0:04:50.4]} 6... h5 {[%clk 0:04:42.1]}
7. f3 {[%clk 0:04:47.9]} 7... Nbd7 {[%clk 0:04:38.5]} 8. Be2 {[%clk 0:04:46.7]}
8... Ne5 {[%clk 0:04:35.9]} 9. Qd2 {[%clk 0:04:44.5]} 9... Bd7 {[%clk
0:04:32.9]} 10. a4 {[%clk 0:04:43]} 10... a6 {[%clk 0:04:27.2]} 11. a5 {[%clk
0:04:40.4]} 11... O-O {[%clk 0:04:19.5]} 12. Nh3 {[%clk 0:04:38.4]} 12... c4
{[%clk 0:04:04.2]} 13. Bh6 {[%clk 0:04:35.2]} 13... e6 {[%clk 0:03:54.6]} 14.
Bxg7 {[%clk 0:04:33.8]} 14... Kxg7 {[%clk 0:03:52.4]} 15. dxe6 {[%clk 0:04:33]}
15... Bxe6 {[%clk 0:03:50.7]} 16. Nf2 {[%clk 0:04:30]} 16... d5 {[%clk
0:03:44.3]} 17. f4 {[%clk 0:04:27.3]} 17... Neg4 {[%clk 0:03:36.8]} 18. e5
{[%clk 0:04:26.5]} 18... Nxf2 {[%clk 0:03:33.1]} 19. exf6+ {[%clk 0:04:25.3]}
19... Qxf6 {[%clk 0:03:30.9]} 20. Kxf2 {[%clk 0:04:24.4]} 20... d4 {[%clk
0:03:25.1]} 21. Ne4 {[%clk 0:04:22.8]} 21... Qf5 {[%clk 0:03:18.2]} 22. Ng5
{[%clk 0:04:17.9]} 22... Bd5 {[%clk 0:03:07.1]} 23. Qxd4+ {[%clk 0:04:15.9]}
23... Kg8 {[%clk 0:02:49.6]} 24. Rac1 {[%clk 0:04:10.3]} 24... Rfe8 {[%clk
0:02:32.9]} 25. Bf3 {[%clk 0:04:05.1]} 25... Bxf3 {[%clk 0:02:28.8]} 26. Nxf3
{[%clk 0:04:03.9]} 26... Red8 {[%clk 0:02:26.5]} 27. Qxc4 {[%clk 0:04:01.8]}
27... Rac8 {[%clk 0:02:23.1]} 28. Qb3 {[%clk 0:03:57.3]} 28... Qxf4 {[%clk
0:02:19.7]} 29. Rhd1 {[%clk 0:03:53.2]} 29... Re8 {[%clk 0:01:31.7]} 30. g3
{[%clk 0:03:44.9]} 30... Qf5 {[%clk 0:01:21.7]} 31. c4 {[%clk 0:03:30.1]} 31...
Qxa5 {[%clk 0:01:17.2]} 32. Re1 {[%clk 0:03:23.6]} 32... Qc5+ {[%clk 0:01:13.4]}
33. Kg2 {[%clk 0:03:22.7]} 33... Qc6 {[%clk 0:00:59.9]} 34. Rxe8+ {[%clk
0:03:18.8]} 34... Rxe8 {[%clk 0:00:57.5]} 35. Qd3 {[%clk 0:03:16.2]} 35... Qc5
{[%clk 0:00:36.9]} 36. Rc2 {[%clk 0:03:05.2]} 36... Kh7 {[%clk 0:00:20.7]} 37.
Qd5 {[%clk 0:03:02.1]} 1-0

[Event "Live Chess"]
[Site "Chess.com"]
[Date "2023.05.20"]
[Round "-"]
[White "Ferrarifan27"]
[Black "Bot_Boy"]
[Result "1-0"]
[WhiteElo "2108"]
[BlackElo "329"]
[TimeControl "300"]
[EndTime "9:42:44 PDT"]
[Termination "Ferrarifan27 won by resignation"]

1. e4 {[%clk 0:04:59.3]} 1... c6 {[%clk 0:04:57]} 2. d4 {[%clk 0:04:57.8]} 2...
d5 {[%clk 0:04:54.5]} 3. e5 {[%clk 0:04:57.4]} 3... Bf5 {[%clk 0:04:45.6]} 4. h4
{[%clk 0:04:55.7]} 4... e6 {[%clk 0:04:39.1]} 5. g4 {[%clk 0:04:53.4]} 5... Be4
{[%clk 0:04:30.3]} 6. f3 {[%clk 0:04:52.1]} 6... Qa5+ {[%clk 0:04:16.4]} 7. Bd2
{[%clk 0:04:49]} 7... Bb4 {[%clk 0:04:14.5]} 8. fxe4 {[%clk 0:04:44.2]} 8...
Bxd2+ {[%clk 0:04:10.1]} 9. Qxd2 {[%clk 0:04:40.2]} 9... Qxd2+ {[%clk
0:04:04.8]} 10. Nxd2 {[%clk 0:04:40.1]} 10... Nd7 {[%clk 0:03:58.1]} 11. exd5
{[%clk 0:04:38.8]} 11... exd5 {[%clk 0:03:53.2]} 12. Ngf3 {[%clk 0:04:37.2]}
12... f6 {[%clk 0:03:44.7]} 13. O-O-O {[%clk 0:04:30.2]} 13... O-O-O {[%clk
0:03:33.8]} 14. Bh3 {[%clk 0:04:25.1]} 14... Kc7 {[%clk 0:03:27.5]} 15. g5
{[%clk 0:04:21.8]} 15... fxe5 {[%clk 0:03:07.6]} 16. Nxe5 {[%clk 0:04:19.2]}
16... Nxe5 {[%clk 0:02:51.5]} 17. dxe5 {[%clk 0:04:19.1]} 17... Ne7 {[%clk
0:02:46.3]} 18. Rhf1 {[%clk 0:04:16.4]} 18... g6 {[%clk 0:02:41.9]} 19. Rf7
{[%clk 0:04:14.5]} 19... Rhe8 {[%clk 0:02:20.5]} 20. Rdf1 {[%clk 0:04:11.3]}
20... b5 {[%clk 0:02:10.4]} 21. Rxh7 {[%clk 0:04:09.2]} 21... d4 {[%clk
0:02:04.4]} 22. Rff7 {[%clk 0:04:06.9]} 22... Kb6 {[%clk 0:01:55.6]} 23. Rxe7
{[%clk 0:04:03.3]} 23... Rxe7 {[%clk 0:01:53.3]} 24. Rxe7 {[%clk 0:04:02.8]}
24... d3 {[%clk 0:01:50.4]} 25. Rd7 {[%clk 0:03:56.9]} 25... Rxd7 {[%clk
0:01:46.2]} 26. Bxd7 {[%clk 0:03:55.2]} 26... Kc7 {[%clk 0:01:37]} 27. Be8
{[%clk 0:03:49.2]} 27... a5 {[%clk 0:01:26.1]} 28. Bxg6 {[%clk 0:03:47.4]} 28...
dxc2 {[%clk 0:01:17.2]} 29. Bxc2 {[%clk 0:03:45.3]} 29... Kd7 {[%clk 0:01:06.6]}
30. Bf5+ {[%clk 0:03:43.8]} 30... Ke7 {[%clk 0:01:02.2]} 31. g6 {[%clk 0:03:43]}
1-0

[Event "Live Chess"]
[Site "Chess.com"]
[Date "2023.05.20"]
[Round "-"]
[White "CheckThis4"]
[Black "nick1993"]
[Result "1-0"]
[WhiteElo "2538"]
[BlackElo "2119"]
[TimeControl "300"]
[EndTime "9:42:46 PDT"]
[Termination "CheckThis4 won by resignation"]

1. Nf3 {[%clk 0:04:54.4]} 1... Nf6 {[%clk 0:04:58.7]} 2. c4 {[%clk 0:04:51.1]}
2... g6 {[%clk 0:04:55.2]} 3. Nc3 {[%clk 0:04:48.1]} 3... Bg7 {[%clk 0:04:54.1]}
4. e4 {[%clk 0:04:46.8]} 4... d6 {[%clk 0:04:50.9]} 5. d4 {[%clk 0:04:45.7]}
5... Bg4 {[%clk 0:04:49.1]} 6. Be2 {[%clk 0:04:44.1]} 6... Nbd7 {[%clk
0:04:46.6]} 7. Be3 {[%clk 0:04:38]} 7... c5 {[%clk 0:04:28]} 8. d5 {[%clk
0:04:26.7]} 8... Qb6 {[%clk 0:04:22.7]} 9. Rb1 {[%clk 0:04:20.7]} 9... O-O
{[%clk 0:04:13.1]} 10. Nd2 {[%clk 0:04:12.8]} 10... Bxe2 {[%clk 0:04:10.4]} 11.
Qxe2 {[%clk 0:04:12.7]} 11... Ne5 {[%clk 0:04:07.4]} 12. h3 {[%clk 0:04:05.3]}
12... Rfe8 {[%clk 0:03:54.7]} 13. O-O {[%clk 0:03:50.4]} 13... e6 {[%clk
0:03:52.5]} 14. f4 {[%clk 0:03:43.4]} 14... Ned7 {[%clk 0:03:49.4]} 15. b4
{[%clk 0:03:40.5]} 15... Qc7 {[%clk 0:03:26.6]} 16. Nb5 {[%clk 0:03:37.2]} 16...
Qb8 {[%clk 0:03:24.4]} 17. bxc5 {[%clk 0:03:33.4]} 17... Nxc5 {[%clk 0:03:19.3]}
18. Bxc5 {[%clk 0:03:20.7]} 18... dxc5 {[%clk 0:03:18.6]} 19. e5 {[%clk
0:03:19.4]} 19... exd5 {[%clk 0:03:16.4]} 20. Qf3 {[%clk 0:03:10.2]} 20... Ne4
{[%clk 0:03:09.3]} 21. Nxe4 {[%clk 0:03:06.9]} 21... dxe4 {[%clk 0:03:09.2]} 22.
Qxe4 {[%clk 0:03:05.2]} 22... a6 {[%clk 0:03:07.4]} 23. Nc3 {[%clk 0:02:59.1]}
23... b6 {[%clk 0:03:00.5]} 24. Nd5 {[%clk 0:02:55.9]} 24... Re6 {[%clk
0:02:45.3]} 25. Nc7 {[%clk 0:02:48.7]} 25... Qxc7 {[%clk 0:02:38.1]} 26. Qxa8+
{[%clk 0:02:46.8]} 26... Bf8 {[%clk 0:02:38]} 27. Rbd1 {[%clk 0:02:40.9]} 27...
f6 {[%clk 0:02:34.3]} 28. Rd8 {[%clk 0:02:37.9]} 28... Qe7 {[%clk 0:02:29.8]}
29. Qc8 {[%clk 0:02:29.3]} 29... fxe5 {[%clk 0:02:23.9]} 30. Rxf8+ {[%clk
0:02:26.5]} 30... Kg7 {[%clk 0:02:15.8]} 31. fxe5 {[%clk 0:02:17.9]} 31... Rxe5
{[%clk 0:02:11.7]} 32. R8f7+ {[%clk 0:02:15.2]} 32... Qxf7 {[%clk 0:02:10.4]}
33. Rxf7+ {[%clk 0:02:13.6]} 33... Kxf7 {[%clk 0:02:10.3]} 34. Qc7+ {[%clk
0:02:12.5]} 34... Re7 {[%clk 0:02:07.8]} 35. Qxb6 {[%clk 0:02:08.7]} 35... Re1+
{[%clk 0:02:06.9]} 36. Kh2 {[%clk 0:02:07]} 36... Rc1 {[%clk 0:02:03.1]} 37.
Qxc5 {[%clk 0:02:05]} 37... Rc2 {[%clk 0:02:02.1]} 38. Qa7+ {[%clk 0:02:02.9]}
38... Kf6 {[%clk 0:02:00.6]} 39. Qxa6+ {[%clk 0:02:02.1]} 39... Kg7 {[%clk
0:01:59.4]} 40. c5 {[%clk 0:01:59.8]} 1-0

[Event "Live Chess"]
[Site "Chess.com"]
[Date "2023.05.20"]
[Round "-"]
[White "Delacorta"]
[Black "stevefairhurst"]
[Result "1-0"]
[WhiteElo "1383"]
[BlackElo "538"]
[TimeControl "300"]
[EndTime "9:42:48 PDT"]
[Termination "Delacorta won by checkmate"]

1. d4 {[%clk 0:04:58.9]} 1... d5 {[%clk 0:04:58.8]} 2. Nf3 {[%clk 0:04:57.8]}
2... Nf6 {[%clk 0:04:52.6]} 3. e3 {[%clk 0:04:56.5]} 3... e6 {[%clk 0:04:50.5]}
4. Bd3 {[%clk 0:04:55.3]} 4... Nc6 {[%clk 0:04:48.4]} 5. b3 {[%clk 0:04:54.1]}
5... Bb4+ {[%clk 0:04:42.9]} 6. Nbd2 {[%clk 0:04:51.9]} 6... O-O {[%clk
0:04:35.5]} 7. O-O {[%clk 0:04:50.7]} 7... Qd6 {[%clk 0:04:33.3]} 8. a3 {[%clk
0:04:45.2]} 8... Bc3 {[%clk 0:04:27.5]} 9. Rb1 {[%clk 0:04:42.9]} 9... e5 {[%clk
0:04:16.7]} 10. dxe5 {[%clk 0:04:38.1]} 10... Nxe5 {[%clk 0:04:15]} 11. Nxe5
{[%clk 0:04:31.8]} 11... Qxe5 {[%clk 0:04:12]} 12. Nf3 {[%clk 0:04:27.6]} 12...
Qh5 {[%clk 0:04:03.8]} 13. h3 {[%clk 0:04:11.1]} 13... Qh6 {[%clk 0:03:51.3]}
14. e4 {[%clk 0:04:08.6]} 14... Qh5 {[%clk 0:03:44.7]} 15. e5 {[%clk 0:03:41.7]}
15... Ne4 {[%clk 0:03:38.2]} 16. Bxe4 {[%clk 0:03:32.7]} 16... dxe4 {[%clk
0:03:36.4]} 17. Nd2 {[%clk 0:03:30.5]} 17... Bxe5 {[%clk 0:03:23.7]} 18. Qxh5
{[%clk 0:03:28]} 18... g6 {[%clk 0:03:21.9]} 19. Qxe5 {[%clk 0:03:23]} 19... Be6
{[%clk 0:03:17.4]} 20. Bb2 {[%clk 0:03:20.5]} 20... Rae8 {[%clk 0:03:14.9]} 21.
Qg7# {[%clk 0:03:18.7]} 1-0